[Event "*** Titled Tuesday Blitz"]
[Site "Chess.com"]
[Date "2021.04.06"]
[Round "11"]
[White "Zq1"]
[Black "mikolka1985"]
[Result "1/2-1/2"]
[WhiteElo "2554"]
[BlackElo "2656"]
[TimeControl "180+1"]
[EndTime "12:07:44 PDT"]
[Termination "Game drawn by repetition"]

1. d4 {[%clk 0:03:00.9]} 1... Nf6 {[%clk 0:02:58.9]} 2. c4 {[%clk 0:03:00.9]}
2... e6 {[%clk 0:02:58.4]} 3. Nc3 {[%clk 0:03:01.1]} 3... Bb4 {[%clk 0:02:57]}
4. e3 {[%clk 0:03:01.4]} 4... b6 {[%clk 0:02:55]} 5. Bd3 {[%clk 0:03:00.6]} 5...
Bb7 {[%clk 0:02:54.1]} 6. f3 {[%clk 0:03:00.9]} 6... c5 {[%clk 0:02:51]} 7. a3
{[%clk 0:02:59.8]} 7... Bxc3+ {[%clk 0:02:40.7]} 8. bxc3 {[%clk 0:02:59.4]} 8...
O-O {[%clk 0:02:40.6]} 9. Ne2 {[%clk 0:02:59.5]} 9... Nc6 {[%clk 0:02:31.5]} 10.
e4 {[%clk 0:02:58]} 10... Ne8 {[%clk 0:02:29.8]} 11. Be3 {[%clk 0:02:53.1]}
11... Na5 {[%clk 0:02:29.4]} 12. dxc5 {[%clk 0:02:51.2]} 12... bxc5 {[%clk
0:02:28.6]} 13. Bxc5 {[%clk 0:02:50.6]} 13... d6 {[%clk 0:02:28.7]} 14. Bb4
{[%clk 0:02:21.3]} 14... Qc7 {[%clk 0:02:25.2]} 15. c5 {[%clk 0:02:17.2]} 15...
dxc5 {[%clk 0:02:23.5]} 16. Bxa5 {[%clk 0:02:17.2]} 16... Qxa5 {[%clk
0:02:23.4]} 17. O-O {[%clk 0:02:16]} 17... Qc7 {[%clk 0:02:20]} 18. Kh1 {[%clk
0:02:11.4]} 18... Rd8 {[%clk 0:02:19.4]} 19. Qb1 {[%clk 0:02:11]} 19... c4
{[%clk 0:02:13.1]} 20. Bc2 {[%clk 0:02:08.2]} 20... e5 {[%clk 0:02:09.6]} 21.
Qc1 {[%clk 0:02:07.2]} 21... Qc5 {[%clk 0:02:01.2]} 22. Ng3 {[%clk 0:02:06.6]}
22... Bc8 {[%clk 0:01:59.4]} 23. Rd1 {[%clk 0:01:58]} 23... Nf6 {[%clk
0:01:58.3]} 24. Rxd8 {[%clk 0:01:52.5]} 24... Rxd8 {[%clk 0:01:57.5]} 25. Qe1
{[%clk 0:01:52.9]} 25... Be6 {[%clk 0:01:52.2]} 26. a4 {[%clk 0:01:49.5]} 26...
h5 {[%clk 0:01:50.9]} 27. h4 {[%clk 0:01:47.4]} 27... Qe7 {[%clk 0:01:35.8]} 28.
Nf5 {[%clk 0:01:42.4]} 28... Bxf5 {[%clk 0:01:35.1]} 29. exf5 {[%clk 0:01:42.2]}
29... Qc5 {[%clk 0:01:32.6]} 30. Rd1 {[%clk 0:01:35.5]} 30... Rxd1 {[%clk
0:01:28.7]} 31. Bxd1 {[%clk 0:01:35]} 31... Kf8 {[%clk 0:01:19.2]} 32. Qd2
{[%clk 0:01:33.9]} 32... Ke7 {[%clk 0:01:18.5]} 33. Bc2 {[%clk 0:01:26.5]} 33...
Qa3 {[%clk 0:00:53]} 34. Qe3 {[%clk 0:01:14]} 34... Kf8 {[%clk 0:00:49.1]} 35.
Be4 {[%clk 0:01:04.3]} 35... Qxa4 {[%clk 0:00:46.1]} 36. Qc5+ {[%clk 0:01:03.1]}
36... Kg8 {[%clk 0:00:46.1]} 37. Qxe5 {[%clk 0:01:03]} 37... a5 {[%clk
0:00:45.7]} 38. Kh2 {[%clk 0:00:53.9]} 38... Qa3 {[%clk 0:00:33.9]} 39. Qd4
{[%clk 0:00:44.1]} 39... Qb3 {[%clk 0:00:17.6]} 40. Qd8+ {[%clk 0:00:42.2]}
40... Kh7 {[%clk 0:00:17.1]} 41. Qxa5 {[%clk 0:00:42.7]} 41... Qb2 {[%clk
0:00:16.1]} 42. Qe5 {[%clk 0:00:36.5]} 42... Qf2 {[%clk 0:00:14.7]} 43. Kh3
{[%clk 0:00:25.6]} 43... Qg1 {[%clk 0:00:12.5]} 44. Kg3 {[%clk 0:00:22.5]} 44...
Qe1+ {[%clk 0:00:11.5]} 45. Kh3 {[%clk 0:00:22.5]} 45... Qh1+ {[%clk 0:00:11.2]}
46. Kg3 {[%clk 0:00:22.3]} 46... Qg1 {[%clk 0:00:10.7]} 47. Kh3 {[%clk
0:00:17.5]} 47... Qh1+ {[%clk 0:00:08]} 48. Kg3 {[%clk 0:00:17.6]} 48... Kh8
{[%clk 0:00:06.7]} 49. Qb8+ {[%clk 0:00:15.7]} 49... Kh7 {[%clk 0:00:06.6]} 50.
Qe5 {[%clk 0:00:16.1]} 1/2-1/2

[Event "*** Titled Tuesday Blitz"]
[Site "Chess.com"]
[Date "2021.04.06"]
[Round "11"]
[White "Jumbo"]
[Black "ShapkinAnatoliy"]
[Result "0-1"]
[WhiteElo "2805"]
[BlackElo "2677"]
[TimeControl "180+1"]
[EndTime "12:07:45 PDT"]
[Termination "ShapkinAnatoliy won on time"]

1. d4 {[%clk 0:03:00.9]} 1... Nf6 {[%clk 0:02:59.6]} 2. c4 {[%clk 0:03:00.7]}
2... g6 {[%clk 0:02:59.9]} 3. Nc3 {[%clk 0:03:00.9]} 3... d5 {[%clk 0:03:00.2]}
4. Bg5 {[%clk 0:02:56.9]} 4... Bg7 {[%clk 0:02:59.8]} 5. e3 {[%clk 0:02:56.3]}
5... c5 {[%clk 0:02:54]} 6. Nf3 {[%clk 0:02:51]} 6... cxd4 {[%clk 0:02:53.5]} 7.
exd4 {[%clk 0:02:51.4]} 7... O-O {[%clk 0:02:51.5]} 8. Bxf6 {[%clk 0:02:36.4]}
8... Bxf6 {[%clk 0:02:52.4]} 9. Nxd5 {[%clk 0:02:36.7]} 9... Bg7 {[%clk
0:02:51.7]} 10. Nc3 {[%clk 0:02:19.1]} 10... Bg4 {[%clk 0:02:48.3]} 11. d5
{[%clk 0:02:18.9]} 11... Qb6 {[%clk 0:02:17.5]} 12. Qb3 {[%clk 0:02:09.2]} 12...
Bxf3 {[%clk 0:02:08.2]} 13. gxf3 {[%clk 0:02:07.9]} 13... Nd7 {[%clk 0:02:03.1]}
14. Be2 {[%clk 0:01:59.9]} 14... Nc5 {[%clk 0:01:57.4]} 15. Qxb6 {[%clk
0:01:59.4]} 15... Bxc3+ {[%clk 0:01:58]} 16. bxc3 {[%clk 0:01:56.8]} 16... axb6
{[%clk 0:01:58.9]} 17. O-O {[%clk 0:01:56.7]} 17... Ra3 {[%clk 0:01:58.9]} 18.
Rfb1 {[%clk 0:01:56.8]} 18... Nd7 {[%clk 0:01:44.1]} 19. Bf1 {[%clk 0:01:28.4]}
19... Rfa8 {[%clk 0:01:43.6]} 20. Bh3 {[%clk 0:01:26]} 20... f5 {[%clk
0:01:41.6]} 21. c5 {[%clk 0:01:14.7]} 21... Nxc5 {[%clk 0:01:40.3]} 22. Rxb6
{[%clk 0:01:14.7]} 22... Rxc3 {[%clk 0:01:37.3]} 23. Bf1 {[%clk 0:01:09.2]}
23... Rxf3 {[%clk 0:01:27.9]} 24. Rc1 {[%clk 0:00:57.1]} 24... Ra5 {[%clk
0:01:26.2]} 25. Bc4 {[%clk 0:00:47.3]} 25... Kf8 {[%clk 0:01:15.9]} 26. Bb5
{[%clk 0:00:47.1]} 26... Ne4 {[%clk 0:01:06.5]} 27. Rc8+ {[%clk 0:00:28.7]}
27... Kg7 {[%clk 0:01:05.3]} 28. Rc7 {[%clk 0:00:24.8]} 28... Rxa2 {[%clk
0:01:03.7]} 29. d6 {[%clk 0:00:17.6]} 29... Rfxf2 {[%clk 0:00:49.1]} 30. Rxe7+
{[%clk 0:00:08.4]} 30... Kf6 {[%clk 0:00:47.4]} 31. Rxe4 {[%clk 0:00:06.5]}
31... fxe4 {[%clk 0:00:48.3]} 32. d7+ {[%clk 0:00:06.7]} 32... Ke7 {[%clk
0:00:48.3]} 33. Re6+ {[%clk 0:00:05.6]} 33... Kxe6 {[%clk 0:00:38]} 34. d8=Q
{[%clk 0:00:06]} 34... Rad2 {[%clk 0:00:20.8]} 35. Qe8+ {[%clk 0:00:03.7]} 35...
Kf5 {[%clk 0:00:20.8]} 36. Qf7+ {[%clk 0:00:02.7]} 36... Ke5 {[%clk 0:00:20.7]}
37. Qe7+ {[%clk 0:00:02.9]} 37... Kd4 {[%clk 0:00:20.6]} 38. Qd6+ {[%clk
0:00:02.9]} 38... Ke3 {[%clk 0:00:17.9]} 39. Qg3+ {[%clk 0:00:03.3]} 39... Kd4
{[%clk 0:00:12.6]} 40. Qd6+ {[%clk 0:00:02.7]} 40... Kc3 {[%clk 0:00:11.5]} 0-1

[Event "*** Titled Tuesday Blitz"]
[Site "Chess.com"]
[Date "2021.04.06"]
[Round "11"]
[White "crazy_but_lazy"]
[Black "GelmanAlexander"]
[Result "0-1"]
[WhiteElo "2430"]
[BlackElo "2637"]
[TimeControl "180+1"]
[EndTime "12:07:52 PDT"]
[Termination "GelmanAlexander won by checkmate"]

1. d4 {[%clk 0:03:00.9]} 1... Nf6 {[%clk 0:02:59.8]} 2. c4 {[%clk 0:03:00.9]}
2... c5 {[%clk 0:02:59.2]} 3. d5 {[%clk 0:03:01]} 3... b5 {[%clk 0:02:59.6]} 4.
Nd2 {[%clk 0:02:59.6]} 4... b4 {[%clk 0:02:55]} 5. e4 {[%clk 0:02:59.1]} 5... d6
{[%clk 0:02:55.4]} 6. b3 {[%clk 0:02:54.5]} 6... g6 {[%clk 0:02:55.5]} 7. Bb2
{[%clk 0:02:54.8]} 7... Bg7 {[%clk 0:02:56.1]} 8. Ngf3 {[%clk 0:02:51]} 8... O-O
{[%clk 0:02:56.5]} 9. Qc2 {[%clk 0:02:48.8]} 9... e5 {[%clk 0:02:53.5]} 10. dxe6
{[%clk 0:02:44.5]} 10... fxe6 {[%clk 0:02:53]} 11. Be2 {[%clk 0:02:29.5]} 11...
e5 {[%clk 0:02:52.9]} 12. O-O {[%clk 0:02:12.1]} 12... Nc6 {[%clk 0:02:52.9]}
13. Rfe1 {[%clk 0:02:05.5]} 13... Nh5 {[%clk 0:02:52.7]} 14. Nf1 {[%clk
0:01:48.9]} 14... Nf4 {[%clk 0:02:49.7]} 15. Ne3 {[%clk 0:01:46.6]} 15... a5
{[%clk 0:02:46.9]} 16. Nd5 {[%clk 0:01:42.5]} 16... Nxe2+ {[%clk 0:02:40.4]} 17.
Rxe2 {[%clk 0:01:31]} 17... Bg4 {[%clk 0:02:41.3]} 18. Re3 {[%clk 0:01:31.2]}
18... Bxf3 {[%clk 0:02:39.1]} 19. Rxf3 {[%clk 0:01:29]} 19... Rxf3 {[%clk
0:02:38.5]} 20. gxf3 {[%clk 0:01:29.9]} 20... Qg5+ {[%clk 0:02:35.2]} 21. Kh1
{[%clk 0:01:29.2]} 21... Rf8 {[%clk 0:02:33.5]} 22. Qe2 {[%clk 0:01:05.2]} 22...
Qh5 {[%clk 0:02:27.9]} 23. Kg2 {[%clk 0:01:03.2]} 23... Nd4 {[%clk 0:02:11.2]}
24. Bxd4 {[%clk 0:01:01.8]} 24... exd4 {[%clk 0:02:12.1]} 25. Re1 {[%clk
0:00:50.9]} 25... Be5 {[%clk 0:02:12]} 26. f4 {[%clk 0:00:50.7]} 26... Qxe2
{[%clk 0:01:53.9]} 27. Rxe2 {[%clk 0:00:51.6]} 27... Bxf4 {[%clk 0:01:54.7]} 28.
Nxf4 {[%clk 0:00:11.7]} 28... Rxf4 {[%clk 0:01:54.3]} 29. Kg3 {[%clk 0:00:10.2]}
29... Rf6 {[%clk 0:01:31.5]} 30. f4 {[%clk 0:00:09.8]} 30... Kf7 {[%clk
0:01:31.5]} 31. e5 {[%clk 0:00:08.2]} 31... Re6 {[%clk 0:01:29.7]} 32. Kf3
{[%clk 0:00:07.6]} 32... dxe5 {[%clk 0:01:29.6]} 33. fxe5 {[%clk 0:00:08.5]}
33... d3 {[%clk 0:01:19]} 34. Rd2 {[%clk 0:00:08.2]} 34... Rxe5 {[%clk
0:01:19.6]} 35. Rxd3 {[%clk 0:00:09]} 35... Rh5 {[%clk 0:01:07.8]} 36. Kg3
{[%clk 0:00:07.4]} 36... Rg5+ {[%clk 0:01:08]} 37. Kf3 {[%clk 0:00:06.9]} 37...
Rf5+ {[%clk 0:01:01.6]} 38. Kg3 {[%clk 0:00:05.9]} 38... Ke6 {[%clk 0:00:56.5]}
39. Rd8 {[%clk 0:00:05.2]} 39... Rg5+ {[%clk 0:00:54.9]} 40. Kf3 {[%clk
0:00:05]} 40... Rf5+ {[%clk 0:00:53.3]} 41. Kg3 {[%clk 0:00:05]} 41... Re5
{[%clk 0:00:49.5]} 42. Ra8 {[%clk 0:00:05.1]} 42... Re3+ {[%clk 0:00:47.9]} 43.
Kf2 {[%clk 0:00:05.2]} 43... Rc3 {[%clk 0:00:47.1]} 44. Rxa5 {[%clk 0:00:05.9]}
44... Kd6 {[%clk 0:00:46.9]} 45. Ra6+ {[%clk 0:00:05.4]} 45... Ke5 {[%clk
0:00:47.2]} 46. Rc6 {[%clk 0:00:05.2]} 46... Rc2+ {[%clk 0:00:46.3]} 47. Ke3
{[%clk 0:00:05.6]} 47... Rc3+ {[%clk 0:00:33.9]} 48. Kd2 {[%clk 0:00:05.1]}
48... Kd4 {[%clk 0:00:34.3]} 49. Rd6+ {[%clk 0:00:05.4]} 49... Ke4 {[%clk
0:00:34.5]} 50. Rc6 {[%clk 0:00:06.3]} 50... Rh3 {[%clk 0:00:32.8]} 51. Rxc5
{[%clk 0:00:06.2]} 51... Rxh2+ {[%clk 0:00:33.4]} 52. Ke1 {[%clk 0:00:06.7]}
52... Rxa2 {[%clk 0:00:32.6]} 53. Rb5 {[%clk 0:00:07.3]} 53... h5 {[%clk
0:00:30.2]} 54. c5 {[%clk 0:00:06.5]} 54... Ke3 {[%clk 0:00:28.6]} 55. Rxb4
{[%clk 0:00:06.9]} 55... Ra1# {[%clk 0:00:28.5]} 0-1

[Event "*** Titled Tuesday Blitz"]
[Site "Chess.com"]
[Date "2021.04.06"]
[Round "11"]
[White "Artyom_ChessMate"]
[Black "Iskusnyh"]
[Result "0-1"]
[WhiteElo "2541"]
[BlackElo "2642"]
[TimeControl "180+1"]
[EndTime "12:07:53 PDT"]
[Termination "Iskusnyh won by resignation"]

1. e4 {[%clk 0:03:00.9]} 1... e6 {[%clk 0:02:59.7]} 2. d4 {[%clk 0:03:00.4]}
2... d5 {[%clk 0:03:00.3]} 3. Bd3 {[%clk 0:03:01]} 3... c5 {[%clk 0:02:59.6]} 4.
exd5 {[%clk 0:03:01]} 4... exd5 {[%clk 0:03:00.3]} 5. c3 {[%clk 0:03:01.4]} 5...
Nc6 {[%clk 0:02:58]} 6. Nf3 {[%clk 0:03:00.2]} 6... Nf6 {[%clk 0:02:57.8]} 7.
O-O {[%clk 0:02:59.6]} 7... Be7 {[%clk 0:02:57]} 8. dxc5 {[%clk 0:02:57.8]} 8...
Bxc5 {[%clk 0:02:56.6]} 9. Re1+ {[%clk 0:02:58.1]} 9... Be6 {[%clk 0:02:56.6]}
10. Ng5 {[%clk 0:02:56.8]} 10... O-O {[%clk 0:02:55.9]} 11. Rxe6 {[%clk
0:02:39.3]} 11... fxe6 {[%clk 0:02:53.3]} 12. Nxe6 {[%clk 0:02:40.2]} 12...
Bxf2+ {[%clk 0:02:23.6]} 13. Kxf2 {[%clk 0:02:23.7]} 13... Ne4+ {[%clk
0:02:16.5]} 14. Kg1 {[%clk 0:02:11.8]} 14... Qb6+ {[%clk 0:02:05.2]} 15. Nd4
{[%clk 0:02:11.6]} 15... Nxd4 {[%clk 0:02:04.3]} 16. Be3 {[%clk 0:02:09]} 16...
Qxb2 {[%clk 0:02:03.5]} 17. Bxd4 {[%clk 0:02:01.6]} 17... Qxa1 {[%clk
0:02:01.4]} 18. Qb3 {[%clk 0:01:47.4]} 18... Rad8 {[%clk 0:01:40.4]} 19. Bxe4
{[%clk 0:01:42]} 19... Kh8 {[%clk 0:01:24.5]} 20. Bd3 {[%clk 0:01:37.2]} 20...
b6 {[%clk 0:01:11]} 21. h3 {[%clk 0:01:31.7]} 21... Rf4 {[%clk 0:01:09.8]} 22.
Be5 {[%clk 0:01:11]} 22... Rf7 {[%clk 0:00:58.1]} 23. Bd4 {[%clk 0:01:02.5]}
23... Rf4 {[%clk 0:00:51.6]} 24. Be5 {[%clk 0:01:00.8]} 24... Rf7 {[%clk
0:00:46]} 25. Kh2 {[%clk 0:00:54.5]} 25... Rf2 {[%clk 0:00:42.7]} 26. Bc2 {[%clk
0:00:41.8]} 26... Re8 {[%clk 0:00:36.9]} 27. Bd4 {[%clk 0:00:39.8]} 27... Rfe2
{[%clk 0:00:31.6]} 28. h4 {[%clk 0:00:15.1]} 28... b5 {[%clk 0:00:26.8]} 29. h5
{[%clk 0:00:14.2]} 29... h6 {[%clk 0:00:25.9]} 30. Bxa7 {[%clk 0:00:05.9]} 30...
Ra8 {[%clk 0:00:21.9]} 31. Qxb5 {[%clk 0:00:04.3]} 31... Rxc2 {[%clk 0:00:20.4]}
32. Bd4 {[%clk 0:00:03.5]} 32... Qxa2 {[%clk 0:00:19.9]} 33. Bxg7+ {[%clk
0:00:02.3]} 33... Kxg7 {[%clk 0:00:19.4]} 34. Qd7+ {[%clk 0:00:02.5]} 34... Kf6
{[%clk 0:00:19.6]} 35. Qd6+ {[%clk 0:00:02.9]} 35... Kf5 {[%clk 0:00:20]} 36.
Qd7+ {[%clk 0:00:03.5]} 36... Ke4 {[%clk 0:00:19.4]} 37. Qg4+ {[%clk 0:00:03.4]}
37... Ke3 {[%clk 0:00:19.1]} 38. Qd4+ {[%clk 0:00:03.3]} 38... Ke2 {[%clk
0:00:18.9]} 39. Qe5+ {[%clk 0:00:03.3]} 39... Kd1 {[%clk 0:00:18.5]} 40. Qd4+
{[%clk 0:00:03]} 40... Kc1 {[%clk 0:00:16.2]} 41. Qg1+ {[%clk 0:00:02.1]} 41...
Kb2 {[%clk 0:00:16.2]} 42. Qb6+ {[%clk 0:00:03]} 42... Ka1 {[%clk 0:00:15.8]}
43. Qd4 {[%clk 0:00:02.9]} 43... Rxg2+ {[%clk 0:00:15.2]} 44. Kh3 {[%clk
0:00:03.8]} 44... Rh2+ {[%clk 0:00:15.3]} 45. Kg4 {[%clk 0:00:04.4]} 45... Qg2+
{[%clk 0:00:15.3]} 46. Kf5 {[%clk 0:00:05.3]} 46... Qe4+ {[%clk 0:00:15]} 47.
Qxe4 {[%clk 0:00:05.4]} 47... dxe4 {[%clk 0:00:15.6]} 0-1

[Event "*** Titled Tuesday Blitz"]
[Site "Chess.com"]
[Date "2021.04.06"]
[Round "11"]
[White "BvsN"]
[Black "DinaBelenkaya"]
[Result "1-0"]
[WhiteElo "2452"]
[BlackElo "2359"]
[TimeControl "180+1"]
[EndTime "12:07:54 PDT"]
[Termination "BvsN won on time"]

1. c4 {[%clk 0:03:00.9]} 1... e5 {[%clk 0:02:59.3]} 2. Nc3 {[%clk 0:03:00.9]}
2... Nc6 {[%clk 0:02:55.9]} 3. Nf3 {[%clk 0:03:00.8]} 3... Nf6 {[%clk
0:02:49.2]} 4. e3 {[%clk 0:03:00.2]} 4... Bb4 {[%clk 0:02:43.6]} 5. Qc2 {[%clk
0:03:00.6]} 5... Bxc3 {[%clk 0:02:35.3]} 6. Qxc3 {[%clk 0:03:00.9]} 6... Qe7
{[%clk 0:02:35.8]} 7. d4 {[%clk 0:03:00.5]} 7... exd4 {[%clk 0:02:35.6]} 8. Nxd4
{[%clk 0:03:00.3]} 8... O-O {[%clk 0:02:34.8]} 9. Nxc6 {[%clk 0:02:54.5]} 9...
dxc6 {[%clk 0:02:26.3]} 10. Be2 {[%clk 0:02:54.1]} 10... Ne4 {[%clk 0:02:24.8]}
11. Qc2 {[%clk 0:02:50.2]} 11... Bf5 {[%clk 0:02:25.3]} 12. Qb3 {[%clk
0:02:43.1]} 12... b6 {[%clk 0:02:23.5]} 13. O-O {[%clk 0:02:41.2]} 13... a5
{[%clk 0:02:21.3]} 14. f3 {[%clk 0:02:36.5]} 14... Nc5 {[%clk 0:02:20.6]} 15.
Qc3 {[%clk 0:02:32.7]} 15... a4 {[%clk 0:02:17.2]} 16. e4 {[%clk 0:02:32.1]}
16... Bg6 {[%clk 0:02:12]} 17. Bf4 {[%clk 0:02:18.4]} 17... Rad8 {[%clk
0:01:54.4]} 18. Rad1 {[%clk 0:02:17.4]} 18... f6 {[%clk 0:01:51.4]} 19. Be3
{[%clk 0:02:08.4]} 19... f5 {[%clk 0:01:48.4]} 20. exf5 {[%clk 0:01:55.4]} 20...
Bxf5 {[%clk 0:01:45.2]} 21. Rfe1 {[%clk 0:01:43.8]} 21... Rfe8 {[%clk
0:01:27.4]} 22. Rxd8 {[%clk 0:01:38.6]} 22... Qxd8 {[%clk 0:01:23.7]} 23. Bxc5
{[%clk 0:01:26.7]} 23... bxc5 {[%clk 0:01:24.6]} 24. Bf1 {[%clk 0:01:25.4]}
24... Rxe1 {[%clk 0:01:10.7]} 25. Qxe1 {[%clk 0:01:24.9]} 25... Qd4+ {[%clk
0:01:11.6]} 26. Qf2 {[%clk 0:01:24.6]} 26... Bb1 {[%clk 0:01:02.3]} 27. a3
{[%clk 0:01:05.8]} 27... Kf7 {[%clk 0:00:53.1]} 28. g3 {[%clk 0:01:04.6]} 28...
Bc2 {[%clk 0:00:46.1]} 29. Qxd4 {[%clk 0:00:56.5]} 29... cxd4 {[%clk 0:00:47]}
30. Kf2 {[%clk 0:00:56.8]} 30... Ke6 {[%clk 0:00:45.4]} 31. Ke2 {[%clk
0:00:52.2]} 31... Kd6 {[%clk 0:00:40.3]} 32. Kd2 {[%clk 0:00:51.8]} 32... Bb3
{[%clk 0:00:39]} 33. Bd3 {[%clk 0:00:43.1]} 33... Kc5 {[%clk 0:00:39.9]} 34.
Bxh7 {[%clk 0:00:41.9]} 34... Bxc4 {[%clk 0:00:39.9]} 35. h4 {[%clk 0:00:36.2]}
35... Bd5 {[%clk 0:00:38.4]} 36. f4 {[%clk 0:00:34.6]} 36... Kc4 {[%clk
0:00:37.9]} 37. Bc2 {[%clk 0:00:31.5]} 37... Bg2 {[%clk 0:00:34.9]} 38. g4
{[%clk 0:00:27.2]} 38... Kb5 {[%clk 0:00:32.1]} 39. Bd3+ {[%clk 0:00:25.3]}
39... Kc5 {[%clk 0:00:29]} 40. g5 {[%clk 0:00:23.8]} 40... Kd5 {[%clk
0:00:22.5]} 41. h5 {[%clk 0:00:21.5]} 41... Ke6 {[%clk 0:00:17.3]} 42. f5+
{[%clk 0:00:17.7]} 42... Ke7 {[%clk 0:00:16.7]} 43. Ke2 {[%clk 0:00:13.9]} 43...
c5 {[%clk 0:00:16]} 44. Kf2 {[%clk 0:00:13.9]} 44... Bd5 {[%clk 0:00:15.3]} 45.
Kg3 {[%clk 0:00:13.6]} 45... c4 {[%clk 0:00:15.1]} 46. Be2 {[%clk 0:00:13.8]}
46... d3 {[%clk 0:00:15.3]} 47. Bd1 {[%clk 0:00:13.9]} 47... Be4 {[%clk
0:00:14.1]} 48. Kf4 {[%clk 0:00:14]} 48... Bc6 {[%clk 0:00:12.7]} 49. Ke5 {[%clk
0:00:14.3]} 49... Bg2 {[%clk 0:00:06.3]} 50. h6 {[%clk 0:00:14.4]} 50... gxh6
{[%clk 0:00:06.3]} 51. g6 {[%clk 0:00:14.5]} 1-0

[Event "*** Titled Tuesday Blitz"]
[Site "Chess.com"]
[Date "2021.04.06"]
[Round "11"]
[White "stepakyedael"]
[Black "Doudou2015"]
[Result "1-0"]
[WhiteElo "2270"]
[BlackElo "2098"]
[TimeControl "180+1"]
[EndTime "12:07:54 PDT"]
[Termination "stepakyedael won on time"]

1. d4 {[%clk 0:03:00.9]} 1... d5 {[%clk 0:02:57.1]} 2. Nf3 {[%clk 0:02:59.9]}
2... e6 {[%clk 0:02:57.4]} 3. e3 {[%clk 0:02:58.4]} 3... Nf6 {[%clk 0:02:56.7]}
4. c4 {[%clk 0:02:58.1]} 4... c5 {[%clk 0:02:56.2]} 5. dxc5 {[%clk 0:02:52.3]}
5... Bxc5 {[%clk 0:02:57.1]} 6. a3 {[%clk 0:02:51.8]} 6... O-O {[%clk
0:02:56.3]} 7. b4 {[%clk 0:02:51.6]} 7... Be7 {[%clk 0:02:56.3]} 8. Bb2 {[%clk
0:02:51.7]} 8... a6 {[%clk 0:02:56.4]} 9. c5 {[%clk 0:02:51.9]} 9... Nc6 {[%clk
0:02:55.2]} 10. Nbd2 {[%clk 0:02:49.9]} 10... Nd7 {[%clk 0:02:53.9]} 11. Nb3
{[%clk 0:02:49.5]} 11... Bf6 {[%clk 0:02:52.7]} 12. Nbd4 {[%clk 0:02:42.7]}
12... g6 {[%clk 0:02:39.3]} 13. Be2 {[%clk 0:02:38.8]} 13... Nxd4 {[%clk
0:02:07.6]} 14. exd4 {[%clk 0:02:37.8]} 14... Re8 {[%clk 0:01:55]} 15. O-O
{[%clk 0:02:37.4]} 15... Nf8 {[%clk 0:01:35.8]} 16. a4 {[%clk 0:02:26.8]} 16...
Bd7 {[%clk 0:01:35.6]} 17. b5 {[%clk 0:02:25.4]} 17... axb5 {[%clk 0:01:15.6]}
18. axb5 {[%clk 0:02:23.6]} 18... h6 {[%clk 0:01:11]} 19. Qc2 {[%clk 0:02:08.1]}
19... Qc7 {[%clk 0:01:06.4]} 20. Rxa8 {[%clk 0:02:01.8]} 20... Rxa8 {[%clk
0:01:07.3]} 21. Ra1 {[%clk 0:01:55.7]} 21... Rxa1+ {[%clk 0:01:06.1]} 22. Bxa1
{[%clk 0:01:55.1]} 22... Qa5 {[%clk 0:01:06.4]} 23. Bc3 {[%clk 0:01:49.5]} 23...
Qa3 {[%clk 0:01:06.3]} 24. Qb2 {[%clk 0:01:43.7]} 24... Qxb2 {[%clk 0:01:04.5]}
25. Bxb2 {[%clk 0:01:43.7]} 25... Be8 {[%clk 0:01:01.5]} 26. Kf1 {[%clk
0:01:32.2]} 26... Nd7 {[%clk 0:01:00.5]} 27. c6 {[%clk 0:01:15.5]} 27... bxc6
{[%clk 0:01:01.4]} 28. bxc6 {[%clk 0:01:15.1]} 28... Nb6 {[%clk 0:01:01.8]} 29.
c7 {[%clk 0:01:07.6]} 29... Bd7 {[%clk 0:00:55.5]} 30. Bc3 {[%clk 0:01:01.6]}
30... Bc8 {[%clk 0:00:47.4]} 31. Ba5 {[%clk 0:01:00.2]} 31... Na4 {[%clk
0:00:42]} 32. Bb5 {[%clk 0:00:51.5]} 32... Nb2 {[%clk 0:00:39.1]} 33. Ke2 {[%clk
0:00:41.5]} 33... g5 {[%clk 0:00:38.7]} 34. Bc3 {[%clk 0:00:36.1]} 34... Nc4
{[%clk 0:00:36]} 35. Bxc4 {[%clk 0:00:35.3]} 35... dxc4 {[%clk 0:00:36.9]} 36.
Kd2 {[%clk 0:00:32.2]} 36... Kf8 {[%clk 0:00:34]} 37. Kc2 {[%clk 0:00:22.4]}
37... Ke8 {[%clk 0:00:33.3]} 38. Nd2 {[%clk 0:00:22.4]} 38... Ba6 {[%clk
0:00:31.1]} 39. Nxc4 {[%clk 0:00:21]} 39... Kd7 {[%clk 0:00:26.6]} 40. Ne3
{[%clk 0:00:18]} 40... Kxc7 {[%clk 0:00:24.9]} 41. d5 {[%clk 0:00:17.9]} 41...
Bxc3 {[%clk 0:00:20.1]} 42. Kxc3 {[%clk 0:00:17.2]} 42... Kd6 {[%clk 0:00:17.7]}
43. Kd4 {[%clk 0:00:14]} 43... e5+ {[%clk 0:00:14.8]} 44. Ke4 {[%clk 0:00:13.7]}
1-0